Department Family,Date Paid,Expense Type,Expense Area,Supplier,Transaction Number,Amount,Vat Inclusive
Crown Prosecution Service ,04/12/23,Crown Court Graduated Fee Scheme,RWD Midlands Wales Unit,6 Kings Bench Walk- Chambers of D Fisher & D Perry,104458 DB,"30,772.74",Y
Crown Prosecution Service ,04/12/23,IT services,DTS Programme Project Cost,NTT Data UK Ltd London,121544776,"97,204.80",Y
Crown Prosecution Service ,04/12/23,IT services,DTS Programme Project Cost,NTT Data UK Ltd London,121544777,"75,626.11",Y
Crown Prosecution Service ,04/12/23,Crown Court Graduated Fee Scheme,Yorks and Humbs CC Legal,23 Essex Street Chambers,207087 - AMH,"25,220.40",Y
Crown Prosecution Service ,04/12/23,Crown Court Graduated Fee Scheme,London North Crown Court Unit,2 Kings Bench Walk London,277216-CHE-OFB4,"25,949.52",
Crown Prosecution Service ,04/12/23,Crown Court Graduated Fee Scheme,London North Crown Court Unit,2 Kings Bench Walk London,277216-MJS-OFB4,"40,603.20",
Crown Prosecution Service ,04/12/23,Crown Court Graduated Fee Scheme,London North Complex Casework Unit,2 Kings Bench Walk London,301337-SD-TRIAL,"32,416.80",
Crown Prosecution Service ,04/12/23,Crown Court Very High Cost Cases Full Scheme,Mersey Cheshire Complex Casework Unit,New Park Court Chambers Leeds,369965-5a/PGKC,"32,770.68",Y
Crown Prosecution Service ,04/12/23,Conference Organisation,Strategy and Policy,Calder Communications Ltd Leeds,509467,"26,569.50",Y
Crown Prosecution Service ,04/12/23,Crown Court Graduated Fee Scheme,RWD Midlands Wales Unit,Apex Chambers,51462-2/EH,"27,356.52",Y
Crown Prosecution Service ,04/12/23,Crown Court Graduated Fee Scheme,West Midlands RASSO Unit,No 5 Fountain Court Chambers,775454/MH/,"29,130.00",Y
Crown Prosecution Service ,04/12/23,IT services,DTS Programme Project Cost,Farsight Consulting Ltd London,INV-2494,"101,644.80",Y
Crown Prosecution Service ,04/12/23,Professional subscriptions and memberships,East of England Area Business Centre,Solicitors Regulation Authority Birmingham,INV200840978,"35,706.00",
Crown Prosecution Service ,05/12/23,Recoverable VAT control,Balance Sheet,Epiq Europe Ltd (Wordwave),0000001656,"5,005.81",Y
Crown Prosecution Service ,05/12/23,Transcriptions and Translation,Other Corporate Programme Payments,Epiq Europe Ltd (Wordwave),0000001656,"25,029.05",
Crown Prosecution Service ,05/12/23,Apprenticeship Levy payments Permanent,Other Corporate Admin Payments,HM Revenue and Customs,948PB000021422408,"11,388.56",
Crown Prosecution Service ,05/12/23,Apprenticeship Levy payments Permanent,Other Corporate Programme Payments,HM Revenue and Customs,948PB000021422408,"130,968.44",
Crown Prosecution Service ,05/12/23,Crown Court Graduated Fee Scheme,East Midlands Crown Court Section,Nine Bedford Row (9 Bedford Row),JB 150733,"40,823.16",Y
Crown Prosecution Service ,05/12/23,Crown Court Very High Cost Cases Full Scheme,RWD Midlands Wales Unit,Seven Bedford Row,lsb 193470,"25,385.04",Y
Crown Prosecution Service ,06/12/23,Crown Court Very High Cost Cases Full Scheme,RWD Midlands Wales Unit,5 Paper Buildings,118791/JMC11,"25,202.40",Y
Crown Prosecution Service ,06/12/23,Crown Court Graduated Fee Scheme,North East Crown Court Unit,Dere Street Barristers,376272 BN,"31,415.76",
Crown Prosecution Service ,06/12/23,Crown Court Graduated Fee Scheme,North West Crown Court Hub,Exchange Chambers - Manchester,626549 RLKC,"32,178.48",Y
Crown Prosecution Service ,06/12/23,UK Hotels,Operational Performance,Clarity Travel Management,CPSHQ031223,67.00,Y
Crown Prosecution Service ,06/12/23,UK National rail travel,Compliance and Assurance,Clarity Travel Management,CPSHQ031223,544.40,
Crown Prosecution Service ,06/12/23,UK Hotels,DID Central Leadership Team,Clarity Travel Management,CPSHQ031223,276.50,Y
Crown Prosecution Service ,06/12/23,UK Hotels,Central Legal Training Team,Clarity Travel Management,CPSHQ031223,677.36,Y
Crown Prosecution Service ,06/12/23,UK Hotels,DID Operational Process,Clarity Travel Management,CPSHQ031223,707.85,Y
Crown Prosecution Service ,06/12/23,UK Hotels,DID DTS Change,Clarity Travel Management,CPSHQ031223,687.00,Y
Crown Prosecution Service ,06/12/23,UK Hotels,Private Office,Clarity Travel Management,CPSHQ031223,256.00,Y
Crown Prosecution Service ,06/12/23,UK Hotels,DID Security and Information,Clarity Travel Management,CPSHQ031223,408.57,Y
Crown Prosecution Service ,06/12/23,UK Hotels,DTUS,Clarity Travel Management,CPSHQ031223,61.99,Y
Crown Prosecution Service ,06/12/23,UK Hotels,PF Learning and Development General,Clarity Travel Management,CPSHQ031223,88.00,Y
Crown Prosecution Service ,06/12/23,UK Hotels,Chief Finance Officer,Clarity Travel Management,CPSHQ031223,118.00,Y
Crown Prosecution Service ,06/12/23,UK Hotels,PF Resourcing,Clarity Travel Management,CPSHQ031223,47.50,Y
Crown Prosecution Service ,06/12/23,UK Hotels,CFO Financial Reporting,Clarity Travel Management,CPSHQ031223,118.00,Y
Crown Prosecution Service ,06/12/23,UK Hotels,PF HR Business Partnering,Clarity Travel Management,CPSHQ031223,82.94,Y
Crown Prosecution Service ,06/12/23,UK Hotels,PF HR Operations,Clarity Travel Management,CPSHQ031223,155.60,Y
Crown Prosecution Service ,06/12/23,UK Hotels,CFO Finance Operations,Clarity Travel Management,CPSHQ031223,77.00,Y
Crown Prosecution Service ,06/12/23,UK Hotels,Permanent Transfer Costs,Clarity Travel Management,CPSHQ031223,349.00,Y
Crown Prosecution Service ,06/12/23,UK Hotels,DID DTS Technology,Clarity Travel Management,CPSHQ031223,168.00,Y
Crown Prosecution Service ,06/12/23,UK National rail travel,CFO Fin System Change and Costings,Clarity Travel Management,CPSHQ031223,488.00,
Crown Prosecution Service ,06/12/23,UK National rail travel,CFO Risk and Assurance,Clarity Travel Management,CPSHQ031223,"1,632.90",
Crown Prosecution Service ,06/12/23,UK National rail travel,DID Operational Process,Clarity Travel Management,CPSHQ031223,407.80,
Crown Prosecution Service ,06/12/23,UK National rail travel,CFO Commercial,Clarity Travel Management,CPSHQ031223,21.00,
Crown Prosecution Service ,06/12/23,UK National rail travel,Permanent Transfer Costs,Clarity Travel Management,CPSHQ031223,638.40,
Crown Prosecution Service ,06/12/23,UK National rail travel,PF HR Operations,Clarity Travel Management,CPSHQ031223,406.10,
Crown Prosecution Service ,06/12/23,UK National rail travel,DID DTS Technology,Clarity Travel Management,CPSHQ031223,"1,246.00",
Crown Prosecution Service ,06/12/23,UK National rail travel,Central Operational Training,Clarity Travel Management,CPSHQ031223,109.25,
Crown Prosecution Service ,06/12/23,UK National rail travel,Central Legal Training Team,Clarity Travel Management,CPSHQ031223,"1,545.80",
Crown Prosecution Service ,06/12/23,UK National rail travel,CFO Estates,Clarity Travel Management,CPSHQ031223,265.80,
Crown Prosecution Service ,06/12/23,UK National rail travel,PF HR Business Management,Clarity Travel Management,CPSHQ031223,16.30,
Crown Prosecution Service ,06/12/23,UK National rail travel,PF HR Business Partnering,Clarity Travel Management,CPSHQ031223,743.60,
Crown Prosecution Service ,06/12/23,UK National rail travel,PF Learning and Development General,Clarity Travel Management,CPSHQ031223,995.05,
Crown Prosecution Service ,06/12/23,UK National rail travel,Court Business Unit,Clarity Travel Management,CPSHQ031223,118.20,
Crown Prosecution Service ,06/12/23,UK Air travel,Private Office,Clarity Travel Management,CPSHQ031223,479.92,
Crown Prosecution Service ,06/12/23,UK National rail travel,PF Resourcing,Clarity Travel Management,CPSHQ031223,362.15,
Crown Prosecution Service ,06/12/23,UK National rail travel,Corporate Communication,Clarity Travel Management,CPSHQ031223,"1,089.40",
Crown Prosecution Service ,06/12/23,UK National rail travel,CFO Strategic Financial Planning,Clarity Travel Management,CPSHQ031223,232.50,
Crown Prosecution Service ,06/12/23,UK National rail travel,DID DTS Change,Clarity Travel Management,CPSHQ031223,"1,967.50",
Crown Prosecution Service ,06/12/23,UK National rail travel,PF People and Business Change,Clarity Travel Management,CPSHQ031223,969.30,
Crown Prosecution Service ,06/12/23,UK National rail travel,DID Security and Information,Clarity Travel Management,CPSHQ031223,719.40,
Crown Prosecution Service ,06/12/23,UK National rail travel,Operational Change,Clarity Travel Management,CPSHQ031223,"2,535.60",
Crown Prosecution Service ,06/12/23,UK National rail travel,DID Central Leadership Team,Clarity Travel Management,CPSHQ031223,208.30,
Crown Prosecution Service ,06/12/23,UK National rail travel,CFO Financial Reporting,Clarity Travel Management,CPSHQ031223,120.20,
Crown Prosecution Service ,06/12/23,UK National rail travel,Strategy and Policy,Clarity Travel Management,CPSHQ031223,"1,667.15",
Crown Prosecution Service ,06/12/23,UK National rail travel,DTUS,Clarity Travel Management,CPSHQ031223,149.10,
Crown Prosecution Service ,06/12/23,UK National rail travel,Chief Finance Officer,Clarity Travel Management,CPSHQ031223,"1,088.90",
Crown Prosecution Service ,06/12/23,UK Hotels,Operational Change,Clarity Travel Management,CPSHQ031223,712.57,Y
Crown Prosecution Service ,07/12/23,Reactive Maintenance,Estate and FM: Programme,Government Property Agency London,00000001/28225,"50,634.61",
Crown Prosecution Service ,07/12/23,Right of use asset clearing Buildings,Balance Sheet,Government Property Agency London,00000001/28955,"51,122.67",
Crown Prosecution Service ,07/12/23,Crown Court Graduated Fee Scheme,SEOC Team 1,2 Kings Bench Walk London,293738-KB-OFB3,"29,485.20",
Crown Prosecution Service ,07/12/23,Crown Court Graduated Fee Scheme,RWD Midlands Wales Unit,5 SAH Services Ltd,624315-6/MC,"46,250.28",Y
Crown Prosecution Service ,07/12/23,Crown Court Graduated Fee Scheme,London North Complex Casework Unit,5 King's Bench Walk,CNKC174989,"69,216.24",Y
Crown Prosecution Service ,07/12/23,Crown Court Graduated Fee Scheme,London North Complex Casework Unit,5 King's Bench Walk,DRKC174032.1,"73,971.00",Y
Crown Prosecution Service ,07/12/23,Crown Court Graduated Fee Scheme,London North Complex Casework Unit,5 King's Bench Walk,JB174032.2,"35,435.88",Y
Crown Prosecution Service ,07/12/23,Crown Court Graduated Fee Scheme,Yorkshire and Humberside Complex Casework Unit,5 King's Bench Walk,RK179283,"38,891.95",Y
Crown Prosecution Service ,07/12/23,Crown Court Graduated Fee Scheme,London North Complex Casework Unit,5 King's Bench Walk,WD174989,"31,183.20",Y
Crown Prosecution Service ,08/12/23,Crown Court Graduated Fee Scheme,West Midlands Complex Casework Unit,6 Kings Bench Walk- Chambers of D Fisher & D Perry,104275,"43,190.64",Y
Crown Prosecution Service ,08/12/23,General Professional Services,DTS Programme Project Cost,NTT Data UK Ltd London,121555182,"156,476.45",Y
Crown Prosecution Service ,08/12/23,IT services,DTS Programme Project Cost,NTT Data UK Ltd London,121555184,"47,389.72",Y
Crown Prosecution Service ,08/12/23,Crown Court Very High Cost Cases Full Scheme,Cymru Wales Complex Casework Unit,Iscoed Chambers,154641.12,"34,000.42",Y
Crown Prosecution Service ,08/12/23,Recoverable VAT control,Balance Sheet,Konica Minolta Business Solutions Limited,Bulk202310,"37,216.52",Y
Crown Prosecution Service ,08/12/23,Lease liability non current lease payments,Balance Sheet,Konica Minolta Business Solutions Limited,Bulk202310,"20,790.00",
Crown Prosecution Service ,08/12/23,Variable lease payment expenses IT and Equipment,Print Contract,Konica Minolta Business Solutions Limited,Bulk202310,"165,292.58",
Crown Prosecution Service ,08/12/23,Recoverable VAT control,Balance Sheet,Epiq Europe Ltd (Wordwave),EINV37232,"5,156.03",Y
Crown Prosecution Service ,08/12/23,Transcriptions and Translation,Other Corporate Programme Payments,Epiq Europe Ltd (Wordwave),EINV37232,"25,780.15",
Crown Prosecution Service ,08/12/23,Recoverable VAT control,Balance Sheet,Konica Minolta Business Solutions Limited,Fleet202310,"21,935.83",Y
Crown Prosecution Service ,08/12/23,Variable lease payment expenses IT and Equipment,Print Contract,Konica Minolta Business Solutions Limited,Fleet202310,"109,679.14",
Crown Prosecution Service ,08/12/23,IT services,DTS Programme Project Cost,FlyForm LTD Cardiff,INV-11623,"45,338.22",Y
Crown Prosecution Service ,11/12/23,Crown Court Graduated Fee Scheme,West Midlands Complex Casework Unit,Kings Bench Walk Leeds,135718/DEKC,"32,618.16",Y
Crown Prosecution Service ,11/12/23,Recoverable VAT control,Balance Sheet,CGI IT UK Ltd,GB014118448,"4,172.21",Y
Crown Prosecution Service ,11/12/23,IT services,Apps and Hosting Contract,CGI IT UK Ltd,GB014118448,"20,861.05",
Crown Prosecution Service ,11/12/23,Crown Court Graduated Fee Scheme,Yorkshire and Humberside Complex Casework Unit,3 Raymond Buildings,RH/255398,"61,760.16",Y
Crown Prosecution Service ,12/12/23,Reactive Maintenance,Estate and FM: Programme,Government Property Agency London,00000001/30119,"25,057.70",
Crown Prosecution Service ,12/12/23,Reactive Maintenance,Estate and FM: Programme,Government Property Agency London,00000001/30120,"32,809.74",
Crown Prosecution Service ,12/12/23,Reactive Maintenance,Estate and FM: Programme,Government Property Agency London,00000001/30121,"26,992.75",
Crown Prosecution Service ,12/12/23,Crown Court Graduated Fee Scheme,SEOC Team 2,Red Lion Chambers (18 RLC),150485CKBtrialfees,"85,675.20",Y
Crown Prosecution Service ,12/12/23,Crown Court Very High Cost Cases Full Scheme,SEOC Team 2,Foundry Chambers (9-12 Bell Yard),201768/JM,"32,313.60",Y
Crown Prosecution Service ,12/12/23,Crown Court Graduated Fee Scheme,South East Complex Casework Unit,23 Essex Street Chambers,206387-EM,"42,847.68",Y
Crown Prosecution Service ,12/12/23,Crown Court Graduated Fee Scheme,South East Complex Casework Unit,2 Harcourt Buildings,JK/,"75,377.28",Y
Crown Prosecution Service ,12/12/23,Crown Court Graduated Fee Scheme,South East Crown Court,QEB Hollis Whiteman Chambers,NC 114782,"48,413.40",Y
Crown Prosecution Service ,12/12/23,Crown Court Graduated Fee Scheme,SEOC Team 2,5 King's Bench Walk,OH 169914,"44,212.80",Y
Crown Prosecution Service ,12/12/23,Crown Court Graduated Fee Scheme,South East Complex Casework Unit,2 Harcourt Buildings,WG/,"37,214.04",Y
Crown Prosecution Service ,13/12/23,Crown Court Graduated Fee Scheme,London North Complex Casework Unit,6 Kings Bench Walk- Chambers of D Fisher & D Perry,102034 JH2,"38,917.66",Y
Crown Prosecution Service ,13/12/23,Crown Court Graduated Fee Scheme,Counter Terrorism Unit: Internal Funding,6 Kings Bench Walk- Chambers of D Fisher & D Perry,106585 MM,"42,242.88",Y
Crown Prosecution Service ,13/12/23,Crown Court Graduated Fee Scheme,North West Crown Court Hub,Harrington Street Chambers,1184097/NJ,"68,430.36",
Crown Prosecution Service ,13/12/23,Crown Court Graduated Fee Scheme,North West Crown Court Hub,Harrington Street Chambers,1184097/SD,"34,099.20",
Crown Prosecution Service ,13/12/23,Advice/PreSending Very High Cost Cases Full Scheme,RWD North Unit,St Pauls Chambers Leeds,140408,"35,172.00",Y
Crown Prosecution Service ,13/12/23,Crown Court Graduated Fee Scheme,South East RASSO Unit,Lamb Chambers,228408,"42,643.68",Y
Crown Prosecution Service ,13/12/23,Recoverable VAT control,Balance Sheet,Trustmarque Solutions Ltd,2374898,"12,185.88",Y
Crown Prosecution Service ,13/12/23,IT non capital software licences,Legal Reference and ICT Licenses,Trustmarque Solutions Ltd,2374898,"60,929.42",
Crown Prosecution Service ,13/12/23,Crown Court Graduated Fee Scheme,North West Crown Court Hub,Exchange Chambers - Manchester,640057 AS,"50,621.28",Y
Crown Prosecution Service ,13/12/23,Crown Court Graduated Fee Scheme,South East RASSO Unit,Lamb Chambers,CP 228408,"27,145.08",Y
Crown Prosecution Service ,14/12/23,Property management fees,Estate and FM: Programme,Government Property Agency London,00000001/29451,"21,243.78",Y
Crown Prosecution Service ,14/12/23,Lease liability non current lease payments,Balance Sheet,Government Property Agency London,00000001/29451,"190,815.05",
Crown Prosecution Service ,14/12/23,National non domestic rates,Estate and FM: Programme,Government Property Agency London,00000001/29451,"64,838.49",
Crown Prosecution Service ,14/12/23,Landlord service charge,Estate and FM: Programme,Government Property Agency London,00000001/29451,"90,401.88",
Crown Prosecution Service ,14/12/23,Property management fees,Estate and FM: Programme,Government Property Agency London,00000001/29453,"2,200.50",Y
Crown Prosecution Service ,14/12/23,National non domestic rates,Estate and FM: Programme,Government Property Agency London,00000001/29453,"22,656.00",
Crown Prosecution Service ,14/12/23,Landlord service charge,Estate and FM: Programme,Government Property Agency London,00000001/29453,"34,236.66",
Crown Prosecution Service ,14/12/23,Lease liability non current lease payments,Balance Sheet,Government Property Agency London,00000001/29453,"19,282.50",
Crown Prosecution Service ,14/12/23,Property management fees,Estate and FM: Programme,Government Property Agency London,00000001/29821,"7,235.63",Y
Crown Prosecution Service ,14/12/23,Landlord service charge,Estate and FM: Programme,Government Property Agency London,00000001/29821,"17,804.32",
Crown Prosecution Service ,14/12/23,Short term leases from 2 to 12 months: Property,Estate and FM: Programme,Government Property Agency London,00000001/29821,"35,100.00",
Crown Prosecution Service ,14/12/23,National non domestic rates,Estate and FM: Programme,Government Property Agency London,00000001/29821,"14,592.00",
Crown Prosecution Service ,14/12/23,Property management fees,Estate and FM: Programme,Government Property Agency London,00000001/29824,"10,418.75",Y
Crown Prosecution Service ,14/12/23,Landlord service charge,Estate and FM: Programme,Government Property Agency London,00000001/29824,"1,416.04",
Crown Prosecution Service ,14/12/23,Lease liability non current lease payments,Balance Sheet,Government Property Agency London,00000001/29824,"23,429.25",
Crown Prosecution Service ,14/12/23,National non domestic rates,Estate and FM: Programme,Government Property Agency London,00000001/29824,"13,980.29",
Crown Prosecution Service ,14/12/23,Property management fees,Estate and FM: Programme,Government Property Agency London,00000001/29831,"6,249.19",Y
Crown Prosecution Service ,14/12/23,Short term leases from 2 to 12 months: Property,Estate and FM: Programme,Government Property Agency London,00000001/29831,"11,687.50",
Crown Prosecution Service ,14/12/23,National non domestic rates,Estate and FM: Programme,Government Property Agency London,00000001/29831,"4,167.44",
Crown Prosecution Service ,14/12/23,Landlord service charge,Estate and FM: Programme,Government Property Agency London,00000001/29831,"3,844.68",
Crown Prosecution Service ,14/12/23,Property management fees,Estate and FM: Programme,Government Property Agency London,00000001/29832,"4,506.00",Y
Crown Prosecution Service ,14/12/23,Landlord service charge,Estate and FM: Programme,Government Property Agency London,00000001/29832,"30,044.66",
Crown Prosecution Service ,14/12/23,Lease liability non current lease payments,Balance Sheet,Government Property Agency London,00000001/29832,"59,760.60",
Crown Prosecution Service ,14/12/23,National non domestic rates,Estate and FM: Programme,Government Property Agency London,00000001/29832,"24,819.54",
Crown Prosecution Service ,14/12/23,Property management fees,Estate and FM: Programme,Government Property Agency London,00000001/29833,"12,476.51",Y
Crown Prosecution Service ,14/12/23,Lease liability non current lease payments,Balance Sheet,Government Property Agency London,00000001/29833,"87,000.00",
Crown Prosecution Service ,14/12/23,Landlord service charge,Estate and FM: Programme,Government Property Agency London,00000001/29833,"3,116.60",
Crown Prosecution Service ,14/12/23,National non domestic rates,Estate and FM: Programme,Government Property Agency London,00000001/29833,"27,776.00",
Crown Prosecution Service ,14/12/23,Property management fees,Estate and FM: Programme,Government Property Agency London,00000001/29834,"8,252.17",Y
Crown Prosecution Service ,14/12/23,Lease liability non current lease payments,Balance Sheet,Government Property Agency London,00000001/29834,"48,123.00",
Crown Prosecution Service ,14/12/23,Landlord service charge,Estate and FM: Programme,Government Property Agency London,00000001/29834,"25,777.03",
Crown Prosecution Service ,14/12/23,National non domestic rates,Estate and FM: Programme,Government Property Agency London,00000001/29834,"15,744.00",
Crown Prosecution Service ,14/12/23,Property management fees,Estate and FM: Programme,Government Property Agency London,00000001/29835,"7,741.49",Y
Crown Prosecution Service ,14/12/23,National non domestic rates,Estate and FM: Programme,Government Property Agency London,00000001/29835,"5,760.08",
Crown Prosecution Service ,14/12/23,Lease liability non current lease payments,Balance Sheet,Government Property Agency London,00000001/29835,"17,383.30",
Crown Prosecution Service ,14/12/23,Property management fees,Estate and FM: Programme,Government Property Agency London,00000001/29837,"7,145.27",Y
Crown Prosecution Service ,14/12/23,Landlord service charge,Estate and FM: Programme,Government Property Agency London,00000001/29837,"4,959.78",
Crown Prosecution Service ,14/12/23,Lease liability non current lease payments,Balance Sheet,Government Property Agency London,00000001/29837,"69,372.10",
Crown Prosecution Service ,14/12/23,National non domestic rates,Estate and FM: Programme,Government Property Agency London,00000001/29837,"23,501.75",
Crown Prosecution Service ,14/12/23,Property management fees,Estate and FM: Programme,Government Property Agency London,00000001/29838,"7,967.54",Y
Crown Prosecution Service ,14/12/23,Landlord service charge,Estate and FM: Programme,Government Property Agency London,00000001/29838,"28,970.24",
Crown Prosecution Service ,14/12/23,Lease liability non current lease payments,Balance Sheet,Government Property Agency London,00000001/29838,"74,220.00",
Crown Prosecution Service ,14/12/23,National non domestic rates,Estate and FM: Programme,Government Property Agency London,00000001/29838,"26,398.10",
Crown Prosecution Service ,14/12/23,Property management fees,Estate and FM: Programme,Government Property Agency London,00000001/29839,"9,291.31",Y
Crown Prosecution Service ,14/12/23,National non domestic rates,Estate and FM: Programme,Government Property Agency London,00000001/29839,"18,688.00",
Crown Prosecution Service ,14/12/23,Short term leases from 2 to 12 months: Property,Estate and FM: Programme,Government Property Agency London,00000001/29839,"47,000.00",
Crown Prosecution Service ,14/12/23,Landlord service charge,Estate and FM: Programme,Government Property Agency London,00000001/29839,"11,351.25",
Crown Prosecution Service ,14/12/23,Property management fees,Estate and FM: Programme,Government Property Agency London,00000001/29840,"7,088.80",Y
Crown Prosecution Service ,14/12/23,National non domestic rates,Estate and FM: Programme,Government Property Agency London,00000001/29840,"9,261.01",
Crown Prosecution Service ,14/12/23,Landlord service charge,Estate and FM: Programme,Government Property Agency London,00000001/29840,"28,794.77",
Crown Prosecution Service ,14/12/23,Lease liability non current lease payments,Balance Sheet,Government Property Agency London,00000001/29840,"32,778.00",
Crown Prosecution Service ,14/12/23,Property management fees,Estate and FM: Programme,Government Property Agency London,00000001/29842,"6,929.53",Y
Crown Prosecution Service ,14/12/23,Lease liability non current lease payments,Balance Sheet,Government Property Agency London,00000001/29842,"51,967.50",
Crown Prosecution Service ,14/12/23,Landlord service charge,Estate and FM: Programme,Government Property Agency London,00000001/29842,"18,833.48",
Crown Prosecution Service ,14/12/23,National non domestic rates,Estate and FM: Programme,Government Property Agency London,00000001/29842,"17,161.33",
Crown Prosecution Service ,14/12/23,Property management fees,Estate and FM: Programme,Government Property Agency London,00000001/29846,"8,203.24",Y
Crown Prosecution Service ,14/12/23,Landlord service charge,Estate and FM: Programme,Government Property Agency London,00000001/29846,"38,864.85",
Crown Prosecution Service ,14/12/23,National non domestic rates,Estate and FM: Programme,Government Property Agency London,00000001/29846,"35,503.75",
Crown Prosecution Service ,14/12/23,Lease liability non current lease payments,Balance Sheet,Government Property Agency London,00000001/29846,"89,856.60",
Crown Prosecution Service ,14/12/23,Lease liability non current lease payments,Balance Sheet,Government Property Agency London,00000001/29847,"28,096.25",
Crown Prosecution Service ,14/12/23,Property management fees,Estate and FM: Programme,Government Property Agency London,00000001/29848,733.50,Y
Crown Prosecution Service ,14/12/23,National non domestic rates,Estate and FM: Programme,Government Property Agency London,00000001/29848,"7,552.00",
Crown Prosecution Service ,14/12/23,Lease liability non current lease payments,Balance Sheet,Government Property Agency London,00000001/29848,"19,282.50",
Crown Prosecution Service ,14/12/23,Landlord service charge,Estate and FM: Programme,Government Property Agency London,00000001/29848,"11,412.22",
Crown Prosecution Service ,14/12/23,Property management fees,Estate and FM: Programme,Government Property Agency London,00000001/29854,"16,104.84",Y
Crown Prosecution Service ,14/12/23,National non domestic rates,Estate and FM: Programme,Government Property Agency London,00000001/29854,"65,651.94",
Crown Prosecution Service ,14/12/23,Landlord service charge,Estate and FM: Programme,Government Property Agency London,00000001/29854,"96,690.80",
Crown Prosecution Service ,14/12/23,Short term leases from 2 to 12 months: Property,Estate and FM: Programme,Government Property Agency London,00000001/29854,"210,288.00",
Crown Prosecution Service ,14/12/23,Property management fees,Estate and FM: Programme,Government Property Agency London,00000001/29855,"15,642.88",Y
Crown Prosecution Service ,14/12/23,Lease liability non current lease payments,Balance Sheet,Government Property Agency London,00000001/29855,"156,900.00",
Crown Prosecution Service ,14/12/23,Landlord service charge,Estate and FM: Programme,Government Property Agency London,00000001/29855,"16,152.99",
Crown Prosecution Service ,14/12/23,National non domestic rates,Estate and FM: Programme,Government Property Agency London,00000001/29855,"51,221.25",
Crown Prosecution Service ,14/12/23,Property management fees,Estate and FM: Programme,Government Property Agency London,00000001/29857,"5,413.37",Y
Crown Prosecution Service ,14/12/23,Lease liability non current lease payments,Balance Sheet,Government Property Agency London,00000001/29857,"8,750.00",
Crown Prosecution Service ,14/12/23,National non domestic rates,Estate and FM: Programme,Government Property Agency London,00000001/29857,"3,493.00",
Crown Prosecution Service ,14/12/23,Landlord service charge,Estate and FM: Programme,Government Property Agency London,00000001/29857,"7,512.08",
Crown Prosecution Service ,14/12/23,Property management fees,Estate and FM: Programme,Government Property Agency London,00000001/29863,"15,375.55",Y
Crown Prosecution Service ,14/12/23,National non domestic rates,Estate and FM: Programme,Government Property Agency London,00000001/29863,"81,403.05",
Crown Prosecution Service ,14/12/23,Lease liability non current lease payments,Balance Sheet,Government Property Agency London,00000001/29863,"244,327.50",
Crown Prosecution Service ,14/12/23,Landlord service charge,Estate and FM: Programme,Government Property Agency London,00000001/29863,"94,851.95",
Crown Prosecution Service ,14/12/23,Property management fees,Estate and FM: Programme,Government Property Agency London,00000001/29867,"4,506.00",Y
Crown Prosecution Service ,14/12/23,Lease liability non current lease payments,Balance Sheet,Government Property Agency London,00000001/29867,"26,746.38",
Crown Prosecution Service ,14/12/23,Property management fees,Estate and FM: Programme,Government Property Agency London,00000001/29868,628.75,Y
Crown Prosecution Service ,14/12/23,Landlord service charge,Estate and FM: Programme,Government Property Agency London,00000001/29868,"50,425.25",
Crown Prosecution Service ,14/12/23,Property management fees,Estate and FM: Administration,Government Property Agency London,00000001/29869,"4,506.00",Y
Crown Prosecution Service ,14/12/23,Landlord service charge,Estate and FM: Administration,Government Property Agency London,00000001/29869,"23,277.00",
Crown Prosecution Service ,14/12/23,National non domestic rates,Estate and FM: Administration,Government Property Agency London,00000001/29869,"3,324.59",
Crown Prosecution Service ,14/12/23,Lease liability non current lease payments,Balance Sheet,Government Property Agency London,00000001/29869,"6,444.25",
Crown Prosecution Service ,14/12/23,Property management fees,Estate and FM: Administration,Government Property Agency London,00000001/30012,766.02,Y
Crown Prosecution Service ,14/12/23,Property management fees,Estate and FM: Programme,Government Property Agency London,00000001/30012,"3,739.98",Y
Crown Prosecution Service ,14/12/23,Lease liability non current lease payments,Balance Sheet,Government Property Agency London,00000001/30012,"1,291,447.18",
Crown Prosecution Service ,14/12/23,National non domestic rates,Estate and FM: Administration,Government Property Agency London,00000001/30012,"97,830.26",
Crown Prosecution Service ,14/12/23,National non domestic rates,Estate and FM: Programme,Government Property Agency London,00000001/30012,"477,641.86",
Crown Prosecution Service ,14/12/23,Landlord service charge,Estate and FM: Programme,Government Property Agency London,00000001/30012,"1,847,420.51",
Crown Prosecution Service ,14/12/23,Property management fees,Estate and FM: Programme,Government Property Agency London,00000001/30022,"7,081.26",Y
Crown Prosecution Service ,14/12/23,Lease liability non current lease payments,Balance Sheet,Government Property Agency London,00000001/30022,"89,521.20",
Crown Prosecution Service ,14/12/23,Landlord service charge,Estate and FM: Programme,Government Property Agency London,00000001/30022,"30,133.96",
Crown Prosecution Service ,14/12/23,National non domestic rates,Estate and FM: Programme,Government Property Agency London,00000001/30022,"21,612.83",
Crown Prosecution Service ,14/12/23,Property management fees,Estate and FM: Administration,Government Property Agency London,00000001/30023,766.02,Y
Crown Prosecution Service ,14/12/23,Property management fees,Estate and FM: Programme,Government Property Agency London,00000001/30023,"3,739.98",Y
Crown Prosecution Service ,14/12/23,National non domestic rates,Estate and FM: Administration,Government Property Agency London,00000001/30023,"97,830.26",
Crown Prosecution Service ,14/12/23,Landlord service charge,Estate and FM: Programme,Government Property Agency London,00000001/30023,"1,847,420.51",
Crown Prosecution Service ,14/12/23,Lease liability non current lease payments,Balance Sheet,Government Property Agency London,00000001/30023,"1,231,379.90",
Crown Prosecution Service ,14/12/23,National non domestic rates,Estate and FM: Programme,Government Property Agency London,00000001/30023,"477,641.86",
Crown Prosecution Service ,14/12/23,Lease liability non current lease payments,Balance Sheet,Government Property Agency London,00000001/30081,"35,067.75",
Crown Prosecution Service ,14/12/23,Crown Court Graduated Fee Scheme,Special Crime Unit York,6 Kings Bench Walk- Chambers of D Fisher & D Perry,102115 -- DAT,"32,012.76",Y
Crown Prosecution Service ,14/12/23,Crown Court Graduated Fee Scheme,Counter Terrorism Unit: Internal Funding,6 Kings Bench Walk- Chambers of D Fisher & D Perry,104623 TW,"27,825.12",Y
Crown Prosecution Service ,14/12/23,IT services,DTS Programme Project Cost,NTT Data UK Ltd London,121555186,"67,315.96",Y
Crown Prosecution Service ,14/12/23,Higher Court Very High Cost Cases Full Scheme,Appeals and Review Unit,Matrix Chambers,126378/04,"31,521.60",Y
Crown Prosecution Service ,14/12/23,Crown Court Graduated Fee Scheme,Thames and Chiltern Complex Casework Unit,23 Essex Street Chambers,201542-IH-1,"36,959.76",Y
Crown Prosecution Service ,14/12/23,Crown Court Graduated Fee Scheme,Thames and Chiltern Complex Casework Unit,23 Essex Street Chambers,201542-SQ,"25,220.88",Y
Crown Prosecution Service ,14/12/23,Crown Court Very High Cost Cases Full Scheme,Cymru Wales Complex Casework Unit,30 Park Place Chambers,645593-2/FT,"39,845.20",
Crown Prosecution Service ,14/12/23,UK Hotels,DID DTS Change,Clarity Travel Management,CPSHQ101223,352.15,Y
Crown Prosecution Service ,14/12/23,UK Hotels,Private Office,Clarity Travel Management,CPSHQ101223,459.00,Y
Crown Prosecution Service ,14/12/23,UK Hotels,Operational Performance,Clarity Travel Management,CPSHQ101223,193.81,Y
Crown Prosecution Service ,14/12/23,UK Hotels,Operational Business Support,Clarity Travel Management,CPSHQ101223,173.12,Y
Crown Prosecution Service ,14/12/23,UK Hotels,PF People and Business Change,Clarity Travel Management,CPSHQ101223,91.80,Y
Crown Prosecution Service ,14/12/23,UK Hotels,CFO Estates,Clarity Travel Management,CPSHQ101223,175.00,Y
Crown Prosecution Service ,14/12/23,UK Hotels,Permanent Transfer Costs,Clarity Travel Management,CPSHQ101223,296.60,Y
Crown Prosecution Service ,14/12/23,UK Hotels,Central Legal Training Team,Clarity Travel Management,CPSHQ101223,903.80,Y
Crown Prosecution Service ,14/12/23,UK Hotels,DID Central Leadership Team,Clarity Travel Management,CPSHQ101223,703.30,Y
Crown Prosecution Service ,14/12/23,UK Hotels,CFO Fin System Change and Costings,Clarity Travel Management,CPSHQ101223,371.98,Y
Crown Prosecution Service ,14/12/23,UK Hotels,CFO Commercial,Clarity Travel Management,CPSHQ101223,60.50,Y
Crown Prosecution Service ,14/12/23,UK Hotels,Central Operational Training,Clarity Travel Management,CPSHQ101223,107.50,Y
Crown Prosecution Service ,14/12/23,UK Hotels,Strategy and Policy,Clarity Travel Management,CPSHQ101223,"1,817.68",Y
Crown Prosecution Service ,14/12/23,UK Hotels,DID Security and Information,Clarity Travel Management,CPSHQ101223,918.51,Y
Crown Prosecution Service ,14/12/23,UK Hotels,DTUS,Clarity Travel Management,CPSHQ101223,328.37,Y
Crown Prosecution Service ,14/12/23,UK Hotels,Corporate Communication,Clarity Travel Management,CPSHQ101223,429.30,Y
Crown Prosecution Service ,14/12/23,UK Hotels,Operational Change,Clarity Travel Management,CPSHQ101223,624.28,Y
Crown Prosecution Service ,14/12/23,UK Hotels,PF HR Business Partnering,Clarity Travel Management,CPSHQ101223,156.98,Y
Crown Prosecution Service ,14/12/23,UK Hotels,DID DTS Technology,Clarity Travel Management,CPSHQ101223,722.83,Y
Crown Prosecution Service ,14/12/23,UK National rail travel,Director of Legal Services,Clarity Travel Management,CPSHQ101223,847.20,
Crown Prosecution Service ,14/12/23,UK National rail travel,DID Central Leadership Team,Clarity Travel Management,CPSHQ101223,"1,257.20",
Crown Prosecution Service ,14/12/23,UK National rail travel,CFO Finance Operations,Clarity Travel Management,CPSHQ101223,340.30,
Crown Prosecution Service ,14/12/23,UK National rail travel,Compliance and Assurance,Clarity Travel Management,CPSHQ101223,824.20,
Crown Prosecution Service ,14/12/23,UK National rail travel,PF Legal Training,Clarity Travel Management,CPSHQ101223,"1,749.50",
Crown Prosecution Service ,14/12/23,UK National rail travel,Court Business Unit,Clarity Travel Management,CPSHQ101223,"2,246.90",
Crown Prosecution Service ,14/12/23,UK National rail travel,DID DTS Technology,Clarity Travel Management,CPSHQ101223,587.90,
Crown Prosecution Service ,14/12/23,UK National rail travel,PF HR Business Management,Clarity Travel Management,CPSHQ101223,290.70,
Crown Prosecution Service ,14/12/23,UK National rail travel,PF Resourcing,Clarity Travel Management,CPSHQ101223,56.90,
Crown Prosecution Service ,14/12/23,UK National rail travel,Press Office,Clarity Travel Management,CPSHQ101223,419.50,
Crown Prosecution Service ,14/12/23,UK National rail travel,Operational Change,Clarity Travel Management,CPSHQ101223,"2,490.40",
Crown Prosecution Service ,14/12/23,UK National rail travel,Central Operational Training,Clarity Travel Management,CPSHQ101223,"1,159.30",
Crown Prosecution Service ,14/12/23,UK National rail travel,DID Security and Information,Clarity Travel Management,CPSHQ101223,"1,738.60",
Crown Prosecution Service ,14/12/23,UK National rail travel,CFO Fin System Change and Costings,Clarity Travel Management,CPSHQ101223,372.90,
Crown Prosecution Service ,14/12/23,UK National rail travel,PF HR Systems and Information,Clarity Travel Management,CPSHQ101223,172.90,
Crown Prosecution Service ,14/12/23,UK National rail travel,Corporate Communication,Clarity Travel Management,CPSHQ101223,657.30,
Crown Prosecution Service ,14/12/23,UK National rail travel,Operational Performance,Clarity Travel Management,CPSHQ101223,34.30,
Crown Prosecution Service ,14/12/23,UK National rail travel,Permanent Transfer Costs,Clarity Travel Management,CPSHQ101223,223.30,
Crown Prosecution Service ,14/12/23,UK National rail travel,DID DTS Change,Clarity Travel Management,CPSHQ101223,"2,112.00",
Crown Prosecution Service ,14/12/23,UK National rail travel,PF HR Operations,Clarity Travel Management,CPSHQ101223,658.70,
Crown Prosecution Service ,14/12/23,UK National rail travel,Chief Finance Officer,Clarity Travel Management,CPSHQ101223,35.40,
Crown Prosecution Service ,14/12/23,UK National rail travel,PF HR Business Partnering,Clarity Travel Management,CPSHQ101223,579.00,
Crown Prosecution Service ,14/12/23,UK National rail travel,Private Office,Clarity Travel Management,CPSHQ101223,561.90,
Crown Prosecution Service ,14/12/23,UK National rail travel,DID Operational Process,Clarity Travel Management,CPSHQ101223,813.50,
Crown Prosecution Service ,14/12/23,UK National rail travel,Central Legal Training Team,Clarity Travel Management,CPSHQ101223,"1,652.80",
Crown Prosecution Service ,14/12/23,UK National rail travel,PF Learning and Development General,Clarity Travel Management,CPSHQ101223,847.70,
Crown Prosecution Service ,14/12/23,UK National rail travel,PF People and Business Change,Clarity Travel Management,CPSHQ101223,107.70,
Crown Prosecution Service ,14/12/23,UK National rail travel,Strategy and Policy,Clarity Travel Management,CPSHQ101223,"1,928.15",
Crown Prosecution Service ,14/12/23,UK National rail travel,Operational Business Support,Clarity Travel Management,CPSHQ101223,508.20,
Crown Prosecution Service ,14/12/23,UK National rail travel,CFO Estates,Clarity Travel Management,CPSHQ101223,154.80,
Crown Prosecution Service ,14/12/23,Recoverable VAT control,Balance Sheet,CGI IT UK Ltd,GB014120168,"215,958.02",Y
Crown Prosecution Service ,14/12/23,IT services,Apps and Hosting Contract,CGI IT UK Ltd,GB014120168,"1,079,790.09",
Crown Prosecution Service ,14/12/23,IT non capital software licences,Legal Reference and ICT Licenses,XMA Ltd Wilford,LF30369,"61,794.00",Y
Crown Prosecution Service ,14/12/23,Admin agency staff,DTS Programme Project Cost,Bloom Procurement Services Ltd Gateshead,SIN048003,"190,603.55",Y
Crown Prosecution Service ,15/12/23,Other Staff Costs,DID Security and Information,Cabinet Office RM Shared Services,3835252,"242,075.40",Y
Crown Prosecution Service ,15/12/23,IT non capital software licences,Legal Reference and ICT Licenses,Oracle Corporation UK Ltd,460111429,"39,445.02",Y
Crown Prosecution Service ,15/12/23,IT non capital software licences,Legal Reference and ICT Licenses,Oracle Corporation UK Ltd,460111431,"188,702.70",Y
Crown Prosecution Service ,15/12/23,Crown Court Graduated Fee Scheme,North West Crown Court Hub,Exchange Chambers - Liverpool,632076 - GC CLAIM 4,"48,194.76",Y
Crown Prosecution Service ,15/12/23,Crown Court Graduated Fee Scheme,West Midlands Complex Casework Unit,No 5 Fountain Court Chambers,744262/MBK/OP BEX/7,"35,653.20",Y
Crown Prosecution Service ,15/12/23,Crown Court Graduated Fee Scheme,West Midlands Complex Casework Unit,No 5 Fountain Court Chambers,818688/SCO/,"30,258.24",Y
Crown Prosecution Service ,15/12/23,Crown Court Graduated Fee Scheme,North West Crown Court Hub,9 St John Street (Nine),HLO 431572,"33,705.12",Y
Crown Prosecution Service ,15/12/23,Crown Court Graduated Fee Scheme,London North Complex Casework Unit,Deka Chambers Ltd,TL-,"44,780.52",Y
Crown Prosecution Service ,19/12/23,Crown Court Graduated Fee Scheme,London North Crown Court Unit,Red Lion Chambers (18 RLC),164728DCXtrial,"30,170.40",Y
Crown Prosecution Service ,19/12/23,Crown Court Graduated Fee Scheme,London North Crown Court Unit,Red Lion Chambers (18 RLC),164728MGtrail,"60,377.04",Y
Crown Prosecution Service ,19/12/23,Crown Court Graduated Fee Scheme,Yorks and Humbs CC Legal,Broadway House Chambers,228463-1/SW,"35,524.68",Y
Crown Prosecution Service ,19/12/23,Crown Court Graduated Fee Scheme,RWD North Unit,187 Fleet Street,349017rjb1,"36,160.62",Y
Crown Prosecution Service ,19/12/23,Recoverable VAT control,Balance Sheet,EntServ UK Ltd Hampshire,6133496,"15,637.00",Y
Crown Prosecution Service ,19/12/23,IT services,DTS Programme Project Cost,EntServ UK Ltd Hampshire,6133496,"78,185.00",
Crown Prosecution Service ,19/12/23,Crown Court Graduated Fee Scheme,West Midlands Complex Casework Unit,St Philips Chambers,695590 JDU,"35,196.60",Y
Crown Prosecution Service ,19/12/23,Crown Court Graduated Fee Scheme,West Midlands Complex Casework Unit,St Philips Chambers,695590 RPAKC,"71,907.24",Y
Crown Prosecution Service ,19/12/23,Recoverable VAT control,Balance Sheet,Xerox (UK) Ltd,900232763,"4,370.00",Y
Crown Prosecution Service ,19/12/23,Short term leases from 2 to 12 months: IT and Equipment,Print Contract,Xerox (UK) Ltd,900232763,"21,850.00",
Crown Prosecution Service ,19/12/23,Lease liability non current lease payments,Balance Sheet,Konica Minolta Business Solutions Limited,Bulk202311,"20,790.00",
Crown Prosecution Service ,19/12/23,Recoverable VAT control,Balance Sheet,Konica Minolta Business Solutions Limited,Bulk202311,"34,747.96",Y
Crown Prosecution Service ,19/12/23,Variable lease payment expenses IT and Equipment,Print Contract,Konica Minolta Business Solutions Limited,Bulk202311,"152,949.81",
Crown Prosecution Service ,19/12/23,Recoverable VAT control,Balance Sheet,Konica Minolta Business Solutions Limited,Fleet202311,"21,162.37",Y
Crown Prosecution Service ,19/12/23,Variable lease payment expenses IT and Equipment,Print Contract,Konica Minolta Business Solutions Limited,Fleet202311,"105,811.86",
Crown Prosecution Service ,19/12/23,IT services,DTS Programme Project Cost,CGI IT UK Ltd,GB014120439,"40,662.84",Y
Crown Prosecution Service ,19/12/23,IT services,DTS Programme Project Cost,CGI IT UK Ltd,GB014120442,"57,453.36",Y
Crown Prosecution Service ,19/12/23,Crown Court Graduated Fee Scheme,West Midlands Crown Court Unit,Citadel Chambers,RB/692536/,"27,789.84",Y
Crown Prosecution Service ,20/12/23,IT services,DTS Programme Project Cost,NTT Data UK Ltd London,121555185,"123,012.86",Y
Crown Prosecution Service ,20/12/23,IT services,DTS Programme Project Cost,NTT Data UK Ltd London,121561305,"32,311.18",Y
Crown Prosecution Service ,20/12/23,IT non capital software licences,DTS Programme Project Cost,Trustmarque Solutions Ltd,2375705,"88,740.00",Y
Crown Prosecution Service ,20/12/23,IT services,DTS Programme Project Cost,Accenture (UK) Ltd London,3003641604,"58,467.00",Y
Crown Prosecution Service ,20/12/23,Recoverable VAT control,Balance Sheet,CGI IT UK Ltd,GB014120432,"17,417.23",Y
Crown Prosecution Service ,20/12/23,IT services,Service Desk Contract,CGI IT UK Ltd,GB014120432,"87,086.13",
Crown Prosecution Service ,20/12/23,IT services,DTS Programme Project Cost,Farsight Consulting Ltd London,INV-2533,"81,316.80",Y
Crown Prosecution Service ,20/12/23,Transcriptions and Translation,Other Corporate Programme Payments,AVR Transcription Ltd Bolton,NOV23-CPS,"92,053.63",
Crown Prosecution Service ,20/12/23,Recoverable VAT control,Balance Sheet,AVR Transcription Ltd Bolton,NOV23-CPS,"18,410.73",Y
Crown Prosecution Service ,21/12/23,UK Hotels,Central Legal Training Team,Clarity Travel Management,CPSHQ171223,"1,373.71",Y
Crown Prosecution Service ,21/12/23,UK National rail travel,Central Legal Training Team,Clarity Travel Management,CPSHQ171223,612.10,
Crown Prosecution Service ,21/12/23,UK Hotels,DID Central Leadership Team,Clarity Travel Management,CPSHQ171223,91.00,Y
Crown Prosecution Service ,21/12/23,UK Hotels,Private Office,Clarity Travel Management,CPSHQ171223,441.40,Y
Crown Prosecution Service ,21/12/23,UK Hotels,Chief Finance Officer,Clarity Travel Management,CPSHQ171223,240.18,Y
Crown Prosecution Service ,21/12/23,UK Hotels,CFO Financial Reporting,Clarity Travel Management,CPSHQ171223,84.18,Y
Crown Prosecution Service ,21/12/23,UK Hotels,DTUS,Clarity Travel Management,CPSHQ171223,263.99,Y
Crown Prosecution Service ,21/12/23,UK Hotels,PF HR Systems and Information,Clarity Travel Management,CPSHQ171223,204.60,Y
Crown Prosecution Service ,21/12/23,UK Hotels,Strategy and Policy,Clarity Travel Management,CPSHQ171223,829.59,Y
Crown Prosecution Service ,21/12/23,UK Hotels,PF Learning and Development General,Clarity Travel Management,CPSHQ171223,"1,223.88",Y
Crown Prosecution Service ,21/12/23,UK Hotels,Central Operational Training,Clarity Travel Management,CPSHQ171223,99.00,Y
Crown Prosecution Service ,21/12/23,UK Hotels,Compliance and Assurance,Clarity Travel Management,CPSHQ171223,628.42,Y
Crown Prosecution Service ,21/12/23,UK Hotels,Corporate Communication,Clarity Travel Management,CPSHQ171223,250.20,Y
Crown Prosecution Service ,21/12/23,UK Hotels,DID DTS Change,Clarity Travel Management,CPSHQ171223,670.79,Y
Crown Prosecution Service ,21/12/23,UK Hotels,Director of Legal Services,Clarity Travel Management,CPSHQ171223,699.60,Y
Crown Prosecution Service ,21/12/23,UK Hotels,DID DTS Technology,Clarity Travel Management,CPSHQ171223,"1,686.81",Y
Crown Prosecution Service ,21/12/23,UK Hotels,CFO Commercial,Clarity Travel Management,CPSHQ171223,350.00,Y
Crown Prosecution Service ,21/12/23,UK Hotels,DID Security and Information,Clarity Travel Management,CPSHQ171223,144.74,Y
Crown Prosecution Service ,21/12/23,UK Hotels,DID Operational Process,Clarity Travel Management,CPSHQ171223,"1,554.00",Y
Crown Prosecution Service ,21/12/23,UK Hotels,Permanent Transfer Costs,Clarity Travel Management,CPSHQ171223,297.00,Y
Crown Prosecution Service ,21/12/23,UK Hotels,CFO Finance Operations,Clarity Travel Management,CPSHQ171223,133.00,Y
Crown Prosecution Service ,21/12/23,UK Hotels,PF People and Business Change,Clarity Travel Management,CPSHQ171223,314.00,Y
Crown Prosecution Service ,21/12/23,UK Hotels,Court Business Unit,Clarity Travel Management,CPSHQ171223,726.60,Y
Crown Prosecution Service ,21/12/23,UK National rail travel,DTUS,Clarity Travel Management,CPSHQ171223,150.60,
Crown Prosecution Service ,21/12/23,UK National rail travel,DID DTS Change,Clarity Travel Management,CPSHQ171223,834.90,
Crown Prosecution Service ,21/12/23,UK National rail travel,PF Learning and Development General,Clarity Travel Management,CPSHQ171223,"5,230.40",
Crown Prosecution Service ,21/12/23,UK National rail travel,DID DTS Technology,Clarity Travel Management,CPSHQ171223,286.20,
Crown Prosecution Service ,21/12/23,UK National rail travel,Compliance and Assurance,Clarity Travel Management,CPSHQ171223,285.60,
Crown Prosecution Service ,21/12/23,UK National rail travel,Victim Transformation Prog,Clarity Travel Management,CPSHQ171223,54.70,
Crown Prosecution Service ,21/12/23,UK National rail travel,Strategy and Policy,Clarity Travel Management,CPSHQ171223,956.80,
Crown Prosecution Service ,21/12/23,UK National rail travel,PF HR Business Management,Clarity Travel Management,CPSHQ171223,707.10,
Crown Prosecution Service ,21/12/23,UK National rail travel,Private Office,Clarity Travel Management,CPSHQ171223,132.70,
Crown Prosecution Service ,21/12/23,UK National rail travel,DID Security and Information,Clarity Travel Management,CPSHQ171223,"1,422.00",
Crown Prosecution Service ,21/12/23,UK National rail travel,Permanent Transfer Costs,Clarity Travel Management,CPSHQ171223,705.30,
Crown Prosecution Service ,21/12/23,UK National rail travel,Central Operational Training,Clarity Travel Management,CPSHQ171223,115.00,
Crown Prosecution Service ,21/12/23,UK National rail travel,CFO Commercial,Clarity Travel Management,CPSHQ171223,115.10,
Crown Prosecution Service ,21/12/23,UK National rail travel,PF HR Business Partnering,Clarity Travel Management,CPSHQ171223,"1,169.60",
Crown Prosecution Service ,21/12/23,UK National rail travel,Corporate Communication,Clarity Travel Management,CPSHQ171223,441.70,
Crown Prosecution Service ,21/12/23,UK National rail travel,Operational Change,Clarity Travel Management,CPSHQ171223,862.30,
Crown Prosecution Service ,21/12/23,UK National rail travel,DID Operational Process,Clarity Travel Management,CPSHQ171223,258.20,
Crown Prosecution Service ,21/12/23,UK National rail travel,DID Central Leadership Team,Clarity Travel Management,CPSHQ171223,501.50,
Crown Prosecution Service ,21/12/23,UK National rail travel,CFO Financial Reporting,Clarity Travel Management,CPSHQ171223,32.30,
Crown Prosecution Service ,21/12/23,UK National rail travel,PF HR Systems and Information,Clarity Travel Management,CPSHQ171223,122.00,
Crown Prosecution Service ,21/12/23,UK National rail travel,CFO Estates,Clarity Travel Management,CPSHQ171223,38.70,
Crown Prosecution Service ,21/12/23,UK National rail travel,PF HR Operations,Clarity Travel Management,CPSHQ171223,357.90,
Crown Prosecution Service ,21/12/23,UK National rail travel,Court Business Unit,Clarity Travel Management,CPSHQ171223,"1,224.50",
Crown Prosecution Service ,21/12/23,UK National rail travel,PF People and Business Change,Clarity Travel Management,CPSHQ171223,867.10,
Crown Prosecution Service ,21/12/23,UK National rail travel,Chief Finance Officer,Clarity Travel Management,CPSHQ171223,448.50,
Crown Prosecution Service ,21/12/23,UK Hotels,Operational Change,Clarity Travel Management,CPSHQ171223,377.00,Y
Crown Prosecution Service ,22/12/23,Recoverable VAT control,Balance Sheet,Trustmarque Solutions Ltd,2375827,"12,938.48",Y
Crown Prosecution Service ,22/12/23,IT non capital software licences,Legal Reference and ICT Licenses,Trustmarque Solutions Ltd,2375827,"64,692.38",
Crown Prosecution Service ,22/12/23,Other Staff Costs,Other Corporate Admin Payments,Reward Gateway (UK) Ltd,UK109347SI,"40,000.00",
Crown Prosecution Service ,27/12/23,Recoverable VAT control,Balance Sheet,CGI IT UK Ltd,GB014120761,"56,556.86",Y
Crown Prosecution Service ,27/12/23,Intangibles asset purchase clearing CMS,DTS ICT Capital Expenditure,CGI IT UK Ltd,GB014120761,"282,784.29",
Crown Prosecution Service ,27/12/23,Intangibles asset purchase clearing CMS,DTS ICT Capital Expenditure,CGI IT UK Ltd,GB014120764,"580,718.90",
Crown Prosecution Service ,27/12/23,Recoverable VAT control,Balance Sheet,CGI IT UK Ltd,GB014120764,"116,143.78",Y
Crown Prosecution Service ,27/12/23,IT services,DTS Programme Project Cost,Bloom Procurement Services Ltd Gateshead,SIN048222,"32,133.12",Y
Crown Prosecution Service ,27/12/23,IT services,DTS Programme Project Cost,Bloom Procurement Services Ltd Gateshead,SIN048223,"357,244.00",Y
